Workbook

Sheet Vsebina
B14: Posvetovanje o predlogu popustov, multiplikatorjev in sezonskih faktorjev
B15: na podlagi 28. člena Uredbe Komisije (EU) 2017/460 z dne 16. marca 2017 o oblikovanju kodeksa omrežja o usklajenih tarifnih strukturah za plin
B19: Priloga 1
B20: ='Sezonski faktorji'!B3:F3 -> Določitev sezonskih faktorjev za tarifno obdobje 2027

Sheet Sezonski faktorji
B3: ="Določitev sezonskih faktorjev za tarifno obdobje "&F20+2 -> Določitev sezonskih faktorjev za tarifno obdobje 2027
B4: skladno s 15. členom UREDBE KOMISIJE (EU) 2017/460
B5: z dne 16. marca 2017 o oblikovanju kodeksa omrežja o usklajenih tarifnih strukturah za plin
B7: Parametri izračuna
E8: Vrednosti
B9: Multiplikatorji za kvartalne produkte zmogljivosti | E9: 1.4
B10: Multiplikatorji za mesečne produkte zmogljivosti (maksimalno 1,5) | E10: 1.45
B11: Multiplikatorji za dnevne produkte zmogljivosti (maksimalno 3) | E11: 2.75
B12: Multiplikatorji za znotraj-dnevne produkte zmogljivosti (maksimalno 3) | E12: 2.8
B13: Potenčni eksponent E (0 <= E <= 2) | E13: 1.5
B17: Povprečni urni pretok za vsak posamezen mesec [kWh]
B19: Plinski mesec | C19: Leto
C20: 2022 | D20: 2023 | E20: 2024 | F20: 2025 | G20: 2026*
B21: Januar | C21: 1867603.306 | D21: 1525416.102 | E21: 1611124.727 | F21: 1600132.077 | G21: 1895325.668
B22: Februar | C22: 1649721.385 | D22: 1602272.022 | E22: 1317793.002 | F22: 1594143.996 | G22: 1483630.201
B23: Marec | C23: 2049975.096 | D23: 1573760.972 | E23: 1207010.673 | F23: 1287334.202 | G23: 1316281.571
B24: April | C24: 1736572.448 | D24: 1413478.397 | E24: 1107418.294 | F24: 955492.6633 | G24: 1141695.307
B25: Maj | C25: 986687.8306 | D25: 1376241.303 | E25: 902670.3481 | F25: 985914.1681 | G25: 942275.0394
B26: Junij | C26: 965414.5193 | D26: 1004398.869 | E26: 792023.6513 | F26: 890021.7417 | G26: 871698.9387
B27: Julij | C27: 1332662.375 | D27: 1006964.689 | E27: 831519.6816 | F27: 844387.6455 | G27: 766859.6419
B28: Avgust | C28: 2008199.074 | D28: 770338.7513 | E28: 771513.1758 | F28: 787377.9058 | G28: 748735.9806
B29: September | C29: 1139534.521 | D29: 914577.972 | E29: 893688.8727 | F29: 977082.1013 | G29: 929219.2053
B30: Oktober | C30: 1541847.83 | D30: 894175.8939 | E30: 878594.8161 | F30: 1386463.074 | G30: 1030758.22
B31: November | C31: 1851654.528 | D31: 1348157.911 | E31: 1358115.084 | F31: 1586300.451 | G31: 1371619.778
B32: December | C32: 1399680.49 | D32: 1436345.233 | E32: 1542055.005 | F32: 1616966.724 | G32: 1530177.502
B33: Povprečno | C33: =AVERAGE(C21:C32) -> 1544129.45 | D33: =AVERAGE(D21:D32) -> 1238844.01 | E33: 1101127.278 | F33: 1209301.396 | G33: 1169023.088
B35: ="* Del podatkov za leto "&(F20+1)&"* določen na osnovi prognoziranih pretokov." -> * Del podatkov za leto 2026* določen na osnovi prognoziranih pretokov.
B38: Predpisan kalkulacijski postopek v skladu s členom 15 (odstavki 2 do 6)
B39: Opomba: Postopek izračuna sezonskih faktorjev za mesečne standardne produkte zmogljivosti za zagotovljeno zmogljivost temelji na prognoziranih pretokih.
B41: Člen 15.3a & b
B42: (a) "povprečni podatki o prognoziranih pretokih ali prognoziranih pogodbenih zmogljivostih, če se sezonski faktorji računajo za nekatere ali vse povezovalne točke;" & (b) "izračunane vrednosti iz točke (a) se seštejejo"
B44: Plinski mesec | C44: ="Prognoziran povprečni urni pretok v letu "&(F20+1)&" [kWh]" -> Prognoziran povprečni urni pretok v letu 2026 [kWh]
B45: Januar | C45: 1895325.668
B46: Februar | C46: 1483630.201
B47: Marec | C47: 1316281.571
B48: April | C48: 1141695.307
B49: Maj | C49: 942275.0394
B50: Junij | C50: 871698.9387
B51: Julij | C51: 766859.6419
B52: Avgust | C52: 748735.9806
B53: September | C53: 929219.2053
B54: Oktober | C54: 1030758.22
B55: November | C55: 1371619.778
B56: December | C56: 1530177.502
B57: Seštevek | C57: =SUM(C45:C56) -> 14028277.05
B59: Člen 15.3c
B60: "stopnja uporabe se izračuna tako, da se vsaka od izračunanih vrednosti iz točke (a) deli z izračunano vrednostjo iz točke (b);"
B63: Plinski mesec | C63: Stopnja uporabe | D63: Korekcija stopnje uporabe v primeru vrednosti 0
B64: Januar | C64: =C45/$C$57 -> 0.1351075162 | D64: =IF(C45/$C$57=0,0.1,C45/$C$57) -> 0.1351075162
B65: Februar | C65: =C46/$C$57 -> 0.1057599729 | D65: =IF(C46/$C$57=0,0.1,C46/$C$57) -> 0.1057599729
B66: Marec | C66: 0.09383059417 | D66: 0.09383059417
B67: April | C67: 0.08138528365 | D67: 0.08138528365
B68: Maj | C68: 0.06716969132 | D68: 0.06716969132
B69: Junij | C69: 0.06213870281 | D69: 0.06213870281
B70: Julij | C70: 0.05466527636 | D70: 0.05466527636
B71: Avgust | C71: 0.05337333857 | D71: 0.05337333857
B72: September | C72: 0.06623901153 | D72: 0.06623901153
B73: Oktober | C73: 0.07347717869 | D73: 0.07347717869
B74: November | C74: 0.09777535563 | D74: 0.09777535563
B75: December | C75: 0.1090780782 | D75: 0.1090780782
B78: Člen 15.3d
B79: "izračunane vrednosti iz točke (c) se pomnožijo z 12. Če so izračunane vrednosti enake nič, se, glede na to, kaj je nižje, spremenijo v 0,1 oziroma v najnižjo izračunano vrednost, ki ni enaka nič;"
B81: Plinski mesec | C81: Stopnja uporabe x 12
B82: Januar | C82: =IF(C64=0,MIN($D$64:$D$75),C64)*12 -> 1.621290194
B83: Februar | C83: 1.269119675
B84: Marec | C84: 1.12596713
B85: April | C85: 0.9766234038
B86: Maj | C86: 0.8060362959
B87: Junij | C87: 0.7456644337
B88: Julij | C88: 0.6559833164
B89: Avgust | C89: 0.6404800628
B90: September | C90: 0.7948681383
B91: Oktober | C91: 0.8817261443
B92: November | C92: 1.173304268
B93: December | C93: 1.308936939
B95: Člen 15.3e
B96: "izhodiščna stopnja ustreznih sezonskih faktorjev se izračuna tako, da se vsaka od izračunanih vrednosti iz točke (d) potencira z istim eksponentom, ki ne sme biti manjši od 0 in večji od 2;"
B98: Plinski mesec | C98: Sezonski faktor
B99: Januar | C99: =POWER(C82,$E$13) -> 2.064387087
B100: Februar | C100: =POWER(C83,$E$13) -> 1.429729458
B101: Marec | C101: 1.194781718
B102: April | C102: 0.9651408357
B103: Maj | C103: 0.723655551
B104: Junij | C104: 0.6438951343
B105: Julij | C105: =POWER(C88,$E$13) -> 0.5312992357
B106: Avgust | C106: 0.5125761834
B107: September | C107: 0.7086676914
B108: Oktober | C108: 0.8279432648
B109: November | C109: 1.270913449
B110: December | C110: 1.497538808
B112: Člen 15.3f
B113: "izračuna se aritmetična sredina zmnožkov izračunanih vrednosti iz točke (e) in multiplikator za mesečne standardne produkte zmogljivosti;"
B115: Plinski mesec | C115: Začetni sezonski faktor x multiplikator
C116: Mesečni | D116: Dnevni | E116: Znotraj dneva
B117: Januar | C117: =C99*$E$10 -> 2.993361277 | D117: =C99*$E$11 -> 5.67706449 | E117: =C99*$E$12 -> 5.780283844
B118: Februar | C118: =C100*$E$10 -> 2.073107713 | D118: =C100*$E$11 -> 3.931756008 | E118: =C100*$E$12 -> 4.003242481
B119: Marec | C119: 1.732433492 | D119: 3.285649726 | E119: 3.345388811
B120: April | C120: 1.399454212 | D120: 2.654137298 | E120: 2.70239434
B121: Maj | C121: 1.049300549 | D121: 1.990052765 | E121: 2.026235543
B122: Junij | C122: 0.9336479447 | D122: 1.770711619 | E122: 1.802906376
B123: Julij | C123: 0.7703838917 | D123: 1.461072898 | E123: 1.48763786
B124: Avgust | C124: 0.743235466 | D124: 1.409584504 | E124: 1.435213314
B125: September | C125: 1.027568153 | D125: 1.948836151 | E125: 1.984269536
B126: Oktober | C126: 1.200517734 | D126: 2.276843978 | E126: 2.318241141
B127: November | C127: 1.842824501 | D127: 3.495011984 | E127: 3.558557657
B128: December | C128: 2.171431272 | D128: 4.118231722 | E128: 4.193108662
B129: Povprečje | C129: =AVERAGE(C117:C128) -> 1.494772184 | D129: =AVERAGE(D117:D128) -> 2.834912762 | E129: =AVERAGE(E117:E128) -> 2.88645663
B131: Člen 15.3g
B132: "izračunana vrednost iz točke (f) se primerja z razponom iz člena 13(1), kot sledi:
B133: (i) če je ta vrednost v tem razponu, je stopnja sezonskih faktorjev enaka ustreznim izračunanim vrednostim iz točke (e); (ii) če ta vrednost ni v razponu teh mejnih vrednosti, se uporablja točka (h);"
B135: Člen 15.3h
B136: "stopnja sezonskih faktorjev se izračuna kot zmnožek ustreznih izračunanih vrednosti iz točke (e), korekcijski faktor pa se izračuna:
B137: (i) če je izračunana vrednost iz točke (f) višja od 1,5, se korekcijski faktor izračuna tako, da se 1,5 deli s to vrednostjo; (ii) če je izračunana vrednost iz točke (f) nižja od 1, se korekcijski faktor izračuna tako, da se 1 deli s to vrednostjo.
C139: Mesečni | D139: Dnevni | E139: Znotraj dneva
B140: Korekcijski faktor | C140: =1.5/C129 -> 1.0034974 | D140: =3/D129 -> 1.058233622 | E140: =3/E129 -> 1.039336593
B142: Plinski mesec | C142: Sezonski faktor
C143: Mesečni | D143: Dnevni | E143: Znotraj dneva
B144: Januar | C144: =IF($C$129>1.5,C99*$C$140,C99) -> 2.064387087 | D144: =IF($D$129>3,C99*$D$140,C99) -> 2.064387087 | E144: =IF($E$129>3,C99*$E$140,C99) -> 2.064387087
B145: Februar | C145: =IF($C$129>1.5,C100*$C$140,C100) -> 1.429729458 | D145: =IF($D$129>3,C100*$D$140,C100) -> 1.429729458 | E145: =IF($E$129>3,C100*$E$140,C100) -> 1.429729458
B146: Marec | C146: 1.194781718 | D146: 1.194781718 | E146: 1.194781718
B147: April | C147: 0.9651408357 | D147: 0.9651408357 | E147: 0.9651408357
B148: Maj | C148: 0.723655551 | D148: 0.723655551 | E148: 0.723655551
B149: Junij | C149: 0.6438951343 | D149: 0.6438951343 | E149: 0.6438951343
B150: Julij | C150: 0.5312992357 | D150: 0.5312992357 | E150: 0.5312992357
B151: Avgust | C151: 0.5125761834 | D151: 0.5125761834 | E151: 0.5125761834
B152: September | C152: 0.7086676914 | D152: 0.7086676914 | E152: 0.7086676914
B153: Oktober | C153: 0.8279432648 | D153: 0.8279432648 | E153: 0.8279432648
B154: November | C154: 1.270913449 | D154: 1.270913449 | E154: 1.270913449
B155: December | C155: 1.497538808 | D155: 1.497538808 | E155: 1.497538808
B157: Člen 15.4
B158: "Za dnevne standardne produkte zmogljivosti za zagotovljeno zmogljivost in znotrajdnevne standardne produkte zmogljivosti za zagotovljeno zmogljivost se sezonski faktor smiselno izračuna po postopku iz odstavka 3(f) do (h)."
B161: Člen 15.5
B162: "Postopek izračuna sezonskih faktorjev za četrtletne standardne produkte zmogljivosti za zagotovljeno zmogljivost:
B163: "(a) izhodiščna stopnja zadevnih sezonskih faktorjev se izračuna kot ena izmed naslednjih vrednosti: (i) enaka aritmetični sredini ustreznih sezonskih faktorjev, ki se uporabljajo za tri ustrezne mesece; (ii) enaka ali višja od najnižje in enaka ali nižja od najvišje stopnje ustreznih sezonskih faktorjev, ki se uporabljajo za tri ustrezne mesece;"
B165: (b) postopek iz odstavka 3(f) do (h) se izvede smiselno z uporabo izračunanih vrednostmi iz točke (a).
C167: (i) Aritmetična sredina | D167: (ii) minimum <= sezonski faktor <= maksimum
B168: Plinski kvartal | C168: Sezonski faktor(i) | D168: Sezonski faktorminimum | E168: Sezonski faktormaksimum | F168: Sezonski faktor(ii)
B169: Q2 | C169: =AVERAGE($C$144:$C$146) -> 1.562966088 | D169: =MIN($C$144:$C$146) -> 1.194781718 | E169: =MAX($C$144:$C$146) -> 2.064387087 | F169: 1.269 | G169: =IF(OR(F169<D169,F169>E169)=TRUE,"Izbran sezonski faktor ni znotraj dovoljenih mej!","") ->  | L169: ID | M169: ID1 | N169: Naziv
B170: Q3 | C170: =AVERAGE($C$147:$C$149) -> 0.7775638403 | D170: =MIN($C$147:$C$149) -> 0.6438951343 | E170: =MAX($C$147:$C$149) -> 0.9651408357 | F170: 0.785 | G170: =IF(OR(F170<D170,F170>E170)=TRUE,"Izbran sezonski faktor ni znotraj dovoljenih mej!","") ->  | L170: 1 | M170: (i) | N170: Aritmetična sredina
B171: Q4 | C171: =AVERAGE($C$150:$C$152) -> 0.5841810368 | D171: =MIN($C$150:$C$152) -> 0.5125761834 | E171: =MAX($C$150:$C$152) -> 0.7086676914 | F171: 0.67 | L171: 2 | M171: (ii) | N171: minimum <= sezonski faktor <= maksimum
B172: Q1 | C172: =AVERAGE($C$153:$C$155) -> 1.198798507 | D172: =MIN($C$153:$C$155) -> 0.8279432648 | E172: =MAX($C$153:$C$155) -> 1.497538808 | F172: 1.23
L173: =MATCH(B177,Tabela1[ID1],0) -> 2
B175: Izbran postopek izračuna sezonskih faktorjev za četrtletne standardne produkte zmogljivosti za zagotovljeno zmogljivost:
B177: (ii) | C177: =VLOOKUP(MATCH(B177,Tabela1[ID1],0),Tabela1[],3) -> minimum <= sezonski faktor <= maksimum
B179: Člen 15.6
B180: "Za vse neletne standardne produkte zmogljivosti za zagotovljeno zmogljivost se izračunane vrednosti iz odstavkov 3 do 5 lahko zaokrožijo navzgor ali navzdol."
D182: Sezonski faktor
B183: Plinski mesec | C183: =C44 -> Prognoziran povprečni urni pretok v letu 2026 [kWh] | D183: Kvartalni | E183: Mesečni | F183: Dnevni | G183: Znotraj dneva
B184: Januar | C184: =ROUND(C45,3) -> 1895325.668 | D184: =IF($L$173=1,ROUND($C$169,3),$F$169) -> 1.269 | E184: =ROUND(C144,3) -> 2.064 | F184: =ROUND(D144,3) -> 2.064 | G184: =ROUND(E144,3) -> 2.064
B185: Februar | C185: =ROUND(C46,3) -> 1483630.201 | D185: =IF($L$173=1,ROUND($C$169,3),$F$169) -> 1.269 | E185: 1.43 | F185: 1.43 | G185: 1.43
B186: Marec | C186: 1316281.571 | D186: 1.269 | E186: 1.195 | F186: 1.195 | G186: 1.195
B187: April | C187: 1141695.307 | D187: =IF($L$173=1,ROUND($C$170,3),$F$170) -> 0.785 | E187: 0.965 | F187: 0.965 | G187: 0.965
B188: Maj | C188: 942275.039 | D188: =IF($L$173=1,ROUND($C$170,3),$F$170) -> 0.785 | E188: 0.724 | F188: 0.724 | G188: 0.724
B189: Junij | C189: 871698.939 | D189: 0.785 | E189: 0.644 | F189: 0.644 | G189: 0.644
B190: Julij | C190: 766859.642 | D190: =IF($L$173=1,ROUND($C$171,3),$F$171) -> 0.67 | E190: 0.531 | F190: 0.531 | G190: 0.531
B191: Avgust | C191: 748735.981 | D191: =IF($L$173=1,ROUND($C$171,3),$F$171) -> 0.67 | E191: 0.513 | F191: 0.513 | G191: 0.513
B192: September | C192: 929219.205 | D192: 0.67 | E192: 0.709 | F192: 0.709 | G192: 0.709
B193: Oktober | C193: 1030758.22 | D193: =IF($L$173=1,ROUND($C$172,3),$F$172) -> 1.23 | E193: 0.828 | F193: 0.828 | G193: 0.828
B194: November | C194: 1371619.778 | D194: =IF($L$173=1,ROUND($C$172,3),$F$172) -> 1.23 | E194: 1.271 | F194: 1.271 | G194: 1.271
B195: December | C195: 1530177.502 | D195: 1.23 | E195: 1.498 | F195: 1.498 | G195: 1.498
